Cogmind - Beta 13 @@@ ROGUE MODE // 2024.05.27 @ 12:59:33 Player: Orrad Result: Destroyed by GD-KGJ(R) with Subdweller Machine Gun Performance ------------- Evolutions (0) 0 Regions Visited (2) 400 Robots Destroyed (18) 90 Value Destroyed (233) 233 Prototype IDs (0) 0 Alien Tech Used (0) 0 Bonus (0) 0 TOTAL SCORE: 723 Bonus ------- None Cogmind --------- Core Integrity 0/250 Matter 281/300 Energy 75/250 System Corruption 0% Temperature Cool (0) Movement Core (250) Ox4 Location -10/Subcaves Parts ------- > --- POWER (1) -------- Ion Engine > --- PROPULSION (2) --- (None) > --- UTILITY (2) ------ Small Storage Unit Signal Interpreter > --- WEAPON (2) ------- Makeshift Hammer > --- INVENTORY (8) ---- Structural Scanner Seismic Detector ECM Suite Scrap Shield Maul Peak State ------------ > --- POWER ------------ (None) > --- PROPULSION ------- Aluminum Leg > --- UTILITY ---------- Small Storage Unit Signal Interpreter > --- WEAPON ----------- Maul Makeshift Hammer > --- INVENTORY -------- Ion Engine Structural Scanner Seismic Detector ECM Suite Scrap Shield [Rating: 9] Favorites ----------- Power Light Ion Engine Engine Light Ion Engine Propulsion Aluminum Leg Leg Aluminum Leg Utility Small Storage Unit Device Structural Scanner Storage Small Storage Unit Processor Signal Interpreter Weapon Light Assault Rifle Ballistic Gun Light Assault Rifle Impact Weapon Maul Build | -11 -10 -10 ------- Run | Yrd Mat Sub Slots Evolved . | . . . Power . | . . . Propulsion . | . . . Utility . | . . . Weapon . | . . . Parts Attached 22 | 7 12 3 Power 6 | 2 3 1 Engine 6 | 2 3 1 Core . | . . . Reactor . | . . . Propulsion 4 | 2 2 . Treads . | . . . Leg 4 | 2 2 . Wheel . | . . . Hover . | . . . Flight . | . . . Utility 3 | 1 1 1 Device 1 | . 1 . Storage 1 | 1 . . Processor 1 | . . 1 Hackware . | . . . Protection . | . . . Artifact . | . . . Weapon 9 | 2 6 1 Energy Gun . | . . . Energy Cannon . | . . . Ballistic Gun 7 | 2 5 . Ballistic Cannon . | . . . Launcher . | . . . Special Weapon . | . . . Impact Weapon 2 | . 1 1 Slashing Weapon . | . . . Piercing Weapon . | . . . Special Melee Weapon . | . . . Unidentified Prototypes . | . . . Parts Lost 7 | . 5 2 Power 2 | . 2 . Propulsion 3 | . 2 1 Utility . | . . . Weapon 2 | . 1 1 Highest Loss Streak 2 | . 2 2 To Critical Strikes . | . . . Average Slot Usage (%) 84 | . 85 67 Engine 11 | . 12 . Leg 17 | . 18 12 Device 12 | . 13 3 Storage 14 | . 14 14 Ballistic Gun 25 | . 26 12 Impact Weapon 1 | . . 14 Naked Turns . | . . . Heaviest Build 13 | 12 13 10 Greatest Support 20 | 20 20 10 Greatest Overweight (x) 3 | 1 3 . Average Overweight (x) . | . . . Largest Inventory Capacity 8 | 8 8 8 Average Capacity 7 | 6 8 8 Most Carried 8 | 5 8 7 Average Carried 3 | 2 3 6 Final Capacity 8 | 8 8 8 Final Carried 6 | 1 4 6 Class Distribution -------------------- 89% | Mutant 10% | Scavenger-Mutant Dominant Class ---------------- Mutant | -10/Materials Mutant | -10/Subcaves Resources | -11 -10 -10 ----------- Run | Yrd Mat Sub Matter Collected 501 | 204 293 4 Remotely . | . . . Salvage Created 361 | . 361 . Parts 31 | . 31 . Haulers Intercepted . | . . . Recyclers Shooed . | . . . Parts Field Recycled . | . . . Retrieved Matter . | . . . Parts Self-Destructed . | . . . Prevented . | . . . Kills | -11 -10 -10 ------- Run | Yrd Mat Sub Combat Hostiles Destroyed 11 | . 11 . Guns 11 | . 11 . Classes Destroyed 6 | . 6 . Worker 2 | . 2 . Builder 2 | . 2 . Tunneler 1 | . 1 . Watcher 2 | . 2 . Swarmer 8 | . 8 . Grunt 3 | . 3 . Best Kill Streak 4 | . 4 . Combat Bots Only 3 | . 3 . Max Kills in Single Turn 1 | . 1 . Gunslinging . | . . . Exploded . | . . . Melee . | . . . Uniques/NPCs Destroyed . | . . . Combat | -11 -10 -10 -------- Run | Yrd Mat Sub Hostile Shots Fired 116 | . 95 21 Missed 28 | . 23 5 Damage Taken 966 | . 649 317 Core 251 | . 120 131 Absorbed by Shields . | . . . Core Remaining (%) 100 | 100 . . Volleys Fired 60 | . 57 3 Largest 2 | . 2 1 Hottest 40 | . 40 20 Shots Fired 108 | . 105 3 Gun 108 | . 105 3 Cannon . | . . . Launcher . | . . . Special . | . . . Kinetic 108 | . 105 3 Thermal . | . . . Explosive . | . . . Electromagnetic . | . . . Robot Hit Streak 10 | . 7 10 Robot Miss Streak 5 | . 5 . Penetration Max . | . . . Secondary Targets 3 | . 3 . Max Gunslinging Chain 1 | . 1 . Shots Hit Robots 57 | . 53 4 Core Hits 23 | . 23 . Critical Kills 1 | . 1 . Critical Parts Destroyed 2 | . 1 1 Critical Strikes 3 | . 2 1 Smash 3 | . 2 1 Melee Attacks 12 | . 10 2 Impact 12 | . 10 2 Slashing . | . . . Piercing . | . . . Sneak Attacks 4 | . 4 . Combat Hostiles . | . . . Follow-up Attacks . | . . . Damage Inflicted 791 | . 727 64 Guns 461 | . 435 26 Cannons . | . . . Explosions . | . . . Melee 325 | . 287 38 Ramming 5 | . 5 . Kinetic 461 | . 435 26 Thermal . | . . . Explosive . | . . . Electromagnetic . | . . . Impact 325 | . 287 38 Slashing . | . . . Piercing . | . . . Highest Corruption . | . . . Average Corruption . | . . . Corruption Purged . | . . . Corruption Blocked . | . . . Overload Shots . | . . . Overflow Damage 181 | . 143 38 Projectiles . | . . . Explosions . | . . . Melee 181 | . 143 38 Knockbacks 1 | . . 1 Impact 1 | . . 1 Kinetic . | . . . Secondary . | . . . Self-Inflicted Damage . | . . . Shots . | . . . Rammed . | . . . Targets Rammed 4 | . 4 . Kicked 4 | . 4 . Crushed . | . . . Highest Temperature 6 | . 6 . Average Temperature 4 | . 4 . Received Heat Transfer 114 | . 96 18 Siege Activations . | . . . Robots Corrupted . | . . . Combat Hostiles . | . . . Parts Fried 5 | . 5 . Impact Corruptions 6 | . 5 1 Robots Melted . | . . . Combat Hostiles . | . . . Parts Melted . | . . . Heat Transferred . | . . . Parts Sabotaged . | . . . Parts Stolen . | . . . Parts Stripped . | . . . Power Chain Reactions . | . . . Alert | -11 -10 -10 ------- Run | Yrd Mat Sub Peak Influence 130 | . 130 . Initial . | . . . Average 53 | . 56 . Maximum Alert Level . | . . . Low Security (%) 100 | 100 100 . Level 1 . | . . . Level 2 . | . . . Level 3 . | . . . Level 4 . | . . . Level 5 . | . . . High Security . | . . . Max Security . | . . . Squads Dispatched 1 | . 1 . Investigation . | . . . Extermination . | . . . Reinforcement 1 | . 1 . Assault . | . . . Garrison . | . . . Intercept . | . . . Searches Triggered . | . . . Construction Impeded . | . . . Haulers Reinforced . | . . . Active Scanning Responses . | . . . Cargo Convoy Interrupts . | . . . Stealth | -11 -10 -10 --------- Run | Yrd Mat Sub Distress Signals . | . . . Communications Jammed . | . . . Distress Signals . | . . . Times Spotted 25 | . 17 8 Peak Tracking Total 6 | . 3 6 Tactical Retreats 1 | . 1 . Traps | -11 -10 -10 ------- Run | Yrd Mat Sub Traps Triggered 3 | . 3 . Indirectly . | . . . Trap Hack Attempts . | . . . Triggered . | . . . Disarmed . | . . . Reprogrammed . | . . . Reused . | . . . Traps Extracted . | . . . Installed . | . . . Triggered . | . . . Machines | -11 -10 -10 ---------- Run | Yrd Mat Sub Machines Disabled . | . . . Max in Single Turn . | . . . Machines Repaired . | . . . Machines Dismantled . | . . . Machines Sabotaged . | . . . Overloaded Fab Kills . | . . . Hacking | -11 -10 -10 --------- Run | Yrd Mat Sub Machines Accessed 2 | . 2 . Terminals 1 | . 1 . Fabricators . | . . . Repair Stations . | . . . Recycling Units 1 | . 1 . Scanalyzers . | . . . Garrison Access . | . . . Total Hacks 2 | . 2 . Successful 2 | . 2 . Failed . | . . . Catastrophic . | . . . Database Lockouts . | . . . Manual . | . . . Terminals 1 | . 1 . Fabricators . | . . . Repair Stations . | . . . Recycling Units 1 | . 1 . Scanalyzers . | . . . Garrison Access . | . . . Terminal Hacks 1 | . 1 . Record 1 | . 1 . Fabricator Hacks . | . . . Repair Station Hacks . | . . . Recycling Unit Hacks 1 | . 1 . Report Inventory 1 | . 1 . Scanalyzer . | . . . Garrison Access Hacks . | . . . Unauthorized Hacks . | . . . Terminals . | . . . Fabricators . | . . . Repair Stations . | . . . Recycling Units . | . . . Scanalyzers . | . . . Garrison Access . | . . . Data Cores Recovered . | . . . Used . | . . . Hacking Detections . | . . . Full Trace Events . | . . . Feedback Events . | . . . Feedback Blocked . | . . . Robot Schematics Acquired . | . . . Robots Built . | . . . Authchips . | . . . Time . | . . . Total Robot Build Rating . | . . . Part Schematics Acquired . | . . . Parts Built . | . . . Authchips . | . . . Time . | . . . Total Part Build Rating . | . . . Parts Repaired . | . . . Time . | . . . Parts Recycled . | . . . Recycled Matter . | . . . Retrieved Matter . | . . . Retrieved Components . | . . . Parts Scanalyzed . | . . . Part Schematics Acquired . | . . . Parts Damaged . | . . . Bothacking | -11 -10 -10 ------------ Run | Yrd Mat Sub Used RIF Installer . | . . . Robots Hacked . | . . . Non-combat . | . . . Combat . | . . . Robot Hacks Applied . | . . . Relay Couplers Released . | . . . Fabnet Peak Effective % . | . . . Robots Rewired . | . . . Allies Hacked . | . . . Hacks Repelled . | . . . Allies | -11 -10 -10 -------- Run | Yrd Mat Sub Total Allies . | . . . Largest Group . | . . . Highest-Rated Group . | . . . Highest-Rated Ally . | . . . Total Orders . | . . . Ally Attacks . | . . . Total Damage . | . . . Kills . | . . . Allies Corrupted . | . . . Allies Melted . | . . . Intel | -11 -10 -10 ------- Run | Yrd Mat Sub Robot Analysis Total . | . . . Derelict Logs Recovered 1 | . . 1 Drone Launches . | . . . Drone Recoveries . | . . . Exploration | -11 -10 -10 ------------- Run | Yrd Mat Sub Turns Passed 1211 | 51 1068 92 Spaces Moved 662 | 42 556 64 Core 33 | 20 13 . Treads . | . . . Legs 629 | 22 543 64 Wheels . | . . . Hover . | . . . Flight . | . . . Fastest Speed 50 | 50 100 120 Average Speed 145 | 90 152 120 Slowest Speed 200 | 120 200 120 Overloaded Moves . | . . . Propulsion Burnouts . | . . . Robots Hopped . | . . . Cave-ins Triggered . | . . . Exploration Rate (%) 28 | 3 71 11 Regions Visited 2 Branch Regions 1 Pre-discovered Areas 1 | . . 1 Known Exits Taken . | . . . Unknown Exits Taken 2 | 1 1 . Scrap Searched . | . . . Spaces Dug 6 | . 6 . Terrain Destroyed 6 | . 6 . Melee 6 | . 6 . Projectile . | . . . AOE . | . . . Terrain Rammed . | . . . Walls Destroyed . | . . . Machines Disabled . | . . . Actions | -11 -10 -10 --------- Run | Yrd Mat Sub Total 792 | 53 664 75 Wait 9 | . 9 . Move 660 | 41 555 64 Hop . | . . . Pick Up 21 | 5 14 2 Fast Attach 2 | 2 . . Attach 15 | 4 9 2 Detach 1 | . . 1 Swap 5 | 1 3 1 Drop 3 | . 3 . Fire 60 | . 57 3 Melee 12 | . 10 2 Ram . | . . . Kick 4 | . 4 . Crush . | . . . Escape Stasis . | . . . Rewire . | . . . Trap . | . . . Miscellaneous . | . . . Route ------- -11/Scrapyard -10/Materials (discovered 5 exits: [*Mat x3] / [*Min] / [*Sub]) -10/Subcaves (discovered 1 exit: *Mat) History --------- Turn | Location | Event 14 | -11/Scrapyard | Discovered new exit (range 16) 52 | -11/Scrapyard | Entered Materials 191 | -10/Materials | Discovered new exit (range 11) 302 | -10/Materials | Build established: Mutant 315 | -10/Materials | Discovered new exit (range 6) 457 | -10/Materials | Discovered new exit (range 12) 627 | -10/Materials | Discovered new exit (range 15) 899 | -10/Materials | Discovered new exit (range 7) 1120 | -10/Materials | Entered Subcaves 1123 | -10/Subcaves | Learned location of Zion (-7) 1137 | -10/Subcaves | Discovered new exit (range 14) 1153 | -10/Subcaves | Identified exit to Materials 1158 | -10/Subcaves | Shifting Twisted Machinery released Mak. Hammer 1161 | -10/Subcaves | Shifting Twisted Machinery released Scrap Shield 1195 | -10/Subcaves | Ambushed by swarm of Subdwellers 1198 | -10/Subcaves | Core integrity fell below 50% 1198 | -10/Subcaves | Ambushed by Subdwellers from Twisted Machinery 1211 | -10/Subcaves | Core integrity fell below 20% 1212 | -10/Subcaves | Destroyed by GD-KGJ(R) with Subdweller Machine Gun Last Messages --------------- fellow?" Lgt. Assault Rifle destroyed. Only a single melee weapon may be active at a time, Maul automatically deactivated. (Secondary inactive melee weapons have a chance to conduct follow-up attacks, see the manual.) Subatomizers dissect the Sub. Power Source. CL-8UO(g) destroyed. 1P-M04(R) destroyed. Acquired 4 matter. LM-TLW(R) destroyed. TB-7X7(R) emerges from the Twisted Machinery. UR-JJF(R) suffers critical hit (Smash). Destroyed Sub. Power Source. UR-JJF(R) system corrupted by crushing effect. UR-JJF(R) knocked back. Aluminum Leg destroyed. A2-RNI(R) knocked back. A2-RNI(R) destroyed. Map ----- +----------------------------------------------------+ | ??## ????????????????????????????????? | | ???## ?????????????????????????????????? | | ???## ##?????????????????????????????????? | | ???## ##?????? #?????????????????????????? | | ##### #### ? #?????????????????????????? | | ##### ##### ? #?????????????????????????? | | # ## ##????????????????????????? | | ## ###??????????????????????? | | ## ###?????????????????????? | | ##?????????????????????? | | # ##?????????????????????? | | #### < ###???????####??????????? | | # #### ###???????? ##?????????? | | # #### ## ######"??????? #?????????? | | # #### ##### ######???????? ##????????? | | #########" ###?????????? ?????????? | | ########""" ###???#"#?## ??????????? | | ###??##""" [ ### #### ## ??????????? | | ##???#"""" % ;;;;# # #????????????? | | #######" ! ; ; #???????????????? | | ##### " "" !%% #????????????????? | | #### "" ## =g h ## ##????????????? | | ?# "" ;; #????????????? | | " ####;[%&! #????????????? | | """" "" ##"## #R%!*%[ #????????????? | | " "! " ###### "R*@ & #????????????? | | ## ## """ ##????####R #????????????? | | ##??### "" "#????????###### ###????????????? | | ??????# "?????????????# #?????????????? | | ??????#" ## "?????????????# #???????????? | | ??????#" #?## "????????????? ??????????? | | ??????"" ???###????????????? ### ?????????? | | ??????" ???????????????????? #??# #????????? | | ?????? ????????????????????? ???# ?????????? | | ???????????????????????????? ????# ?????????? | | ???????????????????????????? #???????????????? | | ???????????????????????????? ???????????????? | | ???????????????????????????? ????????????????? | | ?????????????????????????????? ??????????????????? | | ?????????????????????????????????????????????????? | | ?????????????????????????????????????????????????? | | ?????????????????????????????????????????????????? | | ?????????????????????????????????????????????????? | | ?????????????????????????????????????????????????? | | ?????????????????????????????????????????????????? | | ?????????????????????????????????????????????????? | | ?????????????????????????????????????????????????? | | ?????????????????????????????????????????????????? | | ?????????????????????????????????????????????????? | | ?????????????????????????????????????????????????? | +----------------------------------------------------+ Best States ------------- Heat Dissipation 25 Energy Generation 10 Energy Capacity 250 Matter Stores 300 Matter Capacity 300 Sight Range 16 Terrain Scan Density 10 Evasion (%) 55 Item Schematics ----------------- None Robot Schematics ------------------ None Fabricated ------------ Nothing Alien Tech Used ----------------- None Achievements -------------- None Challenges ------------ None Game ------ Seed PlatingFactoryHammer Manual? 0 Play Time 00:14:37 Cumulative 3.3 hours Start 2024.05.27 @ 12:46:59 End 2024.05.27 @ 12:59:33 Sessions 1 Manual Loads 0 Difficulty Rogue Special Mode None Game No. 7 Rogue 7 Adventurer 0 Explorer 0 Win Type - Total 0 Types 0/0/0/0/0/0/0/0/0 Lore% 12 Gallery% 7 Achievement% 7 Wizard Run 0 Options --------- Layout 1 ASCII 0 Keyboard 0 Movement Arrows Keybinds 0 Fullscreen 1 Font 24/Smallcaps Map View 50x35 Zoom Use 0% Tactical HUD 0 Map Filters NONE Filters NONE Steam 1 RUN: 8144662e-6a1f-4fc9-92d2-d00afd4424ae